bitfinex/quotes_SOLUSD_20250414
["timestamp","ask_amount","ask_price","bid_price","bid_amount"]
[1744667178120,10.78251309,128.72,128.7,6.398]
[1744667178724,18.55111309,128.73,128.7,6.398]
[1744667178923,10.78251309,128.73,128.7,6.398]
[1744667179643,18.55071309,128.73,128.7,6.398]
[1744667181740,7.90966157,128.75,128.7,14.1678]
[1744667181946,18.69217466,128.75,128.7,14.1678]
[1744667182328,10.78251309,128.74,128.7,14.1678]
[1744667183047,26.0,128.75,128.7,24.95031309]
[1744667183249,10.78251309,128.76,128.7,14.1678]
[1744667183543,10.78251309,128.76,128.7,97.1678]
[1744667184342,7.7657,128.77,128.7,97.1678]
[1744667184642,10.78251309,128.76,128.7,97.1678]
[1744667184939,10.78251309,128.76,128.7,116.5928]
[1744667185120,10.78251309,128.76,128.7,127.37531309]
[1744667185940,10.78251309,128.77,128.72,1.5999]
[1744667186442,16.94830032,128.78,128.72,1.5999]
[1744667186650,10.78251309,128.77,128.72,1.5999]
[1744667186949,18.54821309,128.77,128.73,7.7681]
[1744667187326,7.7657,128.77,128.73,7.7681]
[1744667187525,22.39611341,128.78,128.73,7.7681]
[1744667187741,18.54781309,128.78,128.73,7.7681]
[1744667188652,22.4269959,128.78,128.73,7.7681]
[1744667189840,18.54781309,128.78,128.73,7.7681]
[1744667190259,10.78251309,128.77,128.73,7.7681]
[1744667191429,10.78251309,128.76,128.72,92.3685]
[1744667191638,10.78251309,128.76,128.72,84.5999]
[1744667191835,10.78251309,128.76,128.72,92.3686]
[1744667192854,33.7665,128.76,128.72,92.3686]
[1744667193044,44.54901309,128.76,128.72,92.3686]
[1744667194652,44.54901309,128.76,128.72,84.5999]
[1744667194844,44.54901309,128.76,128.72,92.3685]
[1744667195054,44.54901309,128.76,128.72,84.5999]
[1744667195853,10.78251309,128.75,128.72,84.5999]
[1744667197659,26.0,128.76,128.72,92.3686]
[1744667198754,11.7421175,128.78,128.72,92.3686]
[1744667199061,7.7654,128.78,128.72,92.3686]
[1744667199249,10.78251309,128.77,128.72,92.3686]
[1744667201057,11.63254651,128.78,128.73,6.6666]
[1744667201264,18.54791309,128.78,128.73,6.6666]
[1744667201861,18.54791309,128.78,128.73,14.4344]
[1744667202063,10.78251309,128.77,128.73,14.4344]
[1744667202563,18.54791309,128.78,128.73,14.4344]
[1744667203561,22.43214338,128.78,128.73,14.4344]
[1744667203864,18.54841309,128.77,128.73,97.4344]
[1744667204067,7.7659,128.77,128.73,97.4344]
[1744667205362,10.78251309,128.77,128.73,97.4344]
[1744667206361,18.54831309,128.77,128.73,97.4344]
[1744667206857,18.54831309,128.77,128.73,89.6666]
[1744667207161,10.78251309,128.76,128.73,89.6666]
[1744667208759,18.54931309,128.76,128.73,89.6666]
[1744667210366,10.78251309,128.75,128.73,89.6666]
[1744667210663,18.933972,128.77,128.72,1.5999]
[1744667210664,18.55011309,128.74,128.72,1.5999]
[1744667212145,18.54971309,128.75,128.72,1.5999]
[1744667212545,18.54921309,128.76,128.72,1.5999]
[1744667212946,18.54921309,128.76,128.72,9.3686]
[1744667214769,7.7667,128.76,128.72,9.3686]
[1744667215072,18.54921309,128.76,128.72,9.3686]
[1744667217266,10.78251309,128.76,128.72,9.3686]
[1744667220669,37.48248509,128.77,128.72,9.3686]
[1744667221044,10.78251309,128.76,128.72,9.3686]
[1744667221461,29.71648509,128.75,128.72,1.5999]
[1744667222044,10.78251309,128.75,128.72,1.5999]
[1744667222968,10.78251309,128.75,128.71,7.7693]
[1744667223855,10.78251309,128.76,128.71,7.7693]
[1744667224054,18.54851309,128.77,128.71,7.7693]
[1744667224362,2.85044231,128.76,128.71,7.7693]
[1744667224669,13.6329554,128.76,128.71,90.7693]
[1744667224857,13.6329554,128.76,128.72,1.5306]
[1744667225048,7.766,128.77,128.73,7.7681]
[1744667225049,2.85044231,128.75,128.73,7.7681]
[1744667225561,28.85044231,128.75,128.73,7.7681]
[1744667225759,28.85044231,128.75,128.73,90.7681]
[1744667225949,26.0,128.75,128.73,90.7681]
[1744667226270,26.41384886,128.8,128.73,101.55061309]
[1744667226448,7.7642,128.8,128.74,17.36971309]
[1744667226644,18.54671309,128.8,128.74,6.5872]
[1744667226943,2.85237417,128.79,128.75,7.7669]
[1744667227150,2.85237417,128.79,128.75,90.7669]
[1744667227857,2.85237417,128.78,128.75,90.7669]
[1744667228053,2.85237417,128.78,128.75,83.0]
[1744667228557,7.7646,128.79,128.75,83.0]
[1744667228758,18.54711309,128.79,128.75,83.0]
[1744667231570,7.7646,128.79,128.75,83.0]
[1744667233752,7.7646,128.79,128.75,90.7669]
[1744667233952,7.7646,128.79,128.75,83.0]
[1744667234579,7.7646,128.79,128.75,90.7669]
[1744667235253,18.54711309,128.79,128.75,90.7669]
[1744667235459,18.54711309,128.79,128.75,83.0]
[1744667235866,10.61924049,128.78,128.75,83.0]
[1744667236886,7.7655,128.78,128.75,83.0]
[1744667239073,10.78251309,128.78,128.75,83.0]
[1744667240285,18.54801309,128.78,128.75,83.0]
[1744667240585,43.13005236,128.82,128.75,90.7668]
[1744667240783,10.78251309,128.8,128.75,90.7668]
[1744667241386,2.85420478,128.79,128.75,90.7668]
[1744667241882,10.61890478,128.79,128.75,90.7668]
[1744667242591,7.7647,128.79,128.75,90.7668]
[1744667243384,7.7647,128.79,128.75,83.0]
[1744667244187,7.7639,128.8,128.75,90.7668]
[1744667244790,2.85369735,128.79,128.75,90.7668]
[1744667245087,10.61849735,128.79,128.75,90.7668]
[1744667245486,7.7648,128.79,128.75,90.7668]
[1744667246190,7.7639,128.8,128.75,101.54931309]
[1744667246803,27.1738,128.8,128.75,10.78251309]
[1744667247095,13.63594952,128.79,128.74,6.5872]
[1744667247687,2.85343643,128.78,128.74,6.5872]
[1744667248184,10.61903643,128.78,128.74,6.5872]
[1744667248599,7.7656,128.78,128.74,6.5872]
[1744667250905,30.19241309,128.8,128.74,6.5872]
[1744667250906,7.7645,128.79,128.74,6.5872]
[1744667251275,18.933972,128.78,128.74,6.5872]
[1744667251503,32.56958858,128.78,128.74,6.5872]
[1744667252296,2.85310349,128.77,128.74,6.5872]
[1744667252786,13.63561658,128.77,128.74,6.5872]
[1744667252988,21.40191658,128.77,128.74,6.5872]
[1744667253602,18.54881309,128.77,128.74,6.5872]
[1744667254503,7.7663,128.77,128.74,6.5872]
[1744667254804,18.54881309,128.77,128.74,6.5872]
[1744667256009,2.84804526,128.76,128.74,6.5872]
[1744667256908,18.54791309,128.78,128.74,89.5872]
[1744667259217,2.84845219,128.77,128.74,89.5872]
[1744667260315,18.54791309,128.78,128.74,89.5872]
[1744667261417,7.7654,128.78,128.74,89.5872]
[1744667262803,2.84944439,128.77,128.74,89.5872]
[1744667263213,2.84944439,128.77,128.74,97.3547]
[1744667263513,7.7654,128.78,128.74,97.3547]
[1744667265120,7.7654,128.78,128.74,89.5872]
[1744667266010,18.64964886,128.82,128.75,1.5653]
[1744667266319,10.78251309,128.81,128.75,84.5653]
[1744667266506,10.78251309,128.81,128.75,95.34781309]
[1744667266895,18.54591309,128.81,128.76,7.7663]
[1744667267418,2.84832585,128.8,128.76,7.7663]
[1744667268392,7.7634,128.81,128.76,7.7663]
[1744667268596,18.54591309,128.81,128.76,7.7663]
[1744667269624,26.0,128.8,128.76,18.54881309]
[1744667269918,10.78251309,128.82,128.76,101.54881309]
[1744667272413,0.063,128.83,128.78,10.78251309]
[1744667272617,0.063,128.83,128.79,10.78251309]
[1744667273320,0.063,128.83,128.8,7.7639]
[1744667277532,0.063,128.83,128.8,18.54641309]
[1744667278511,0.063,128.83,128.81,18.45761309]
[1744667278712,0.063,128.83,128.81,101.45761309]
[1744667279627,0.063,128.83,128.82,10.78251309]
[1744667279928,0.063,128.83,128.82,10.92467466]
[1744667282539,0.063,128.83,128.82,18.68737466]
[1744667283343,0.063,128.83,128.82,101.68737466]
[1744667286439,0.063,128.83,128.82,144.95958859]
[1744667289129,0.063,128.83,128.82,101.82953623]
[1744667292237,0.063,128.85,128.83,110.25053357]
[1744667292427,0.063,128.85,128.84,10.92467466]
[1744667292632,0.063,128.85,128.84,93.92457466]
[1744667292836,0.0001,128.85,128.84,113.00070823]
[1744667293039,0.063,128.88,128.87,26.14216157]
[1744667293239,0.063,128.88,128.87,132.92457466]
[1744667293640,0.063,128.88,128.87,140.68427466]
[1744667293835,0.063,128.88,128.87,140.82643623]
[1744667294044,0.063,128.9,128.88,27.108472]
[1744667294232,0.0001,128.9,128.89,30.00080823]
[1744667295131,0.0001,128.91,128.9,29.85864666]
[1744667295332,0.0001,128.91,128.9,36.19120823]
[1744667295531,0.0001,128.91,128.9,43.94910823]
[1744667295851,0.063,128.93,128.92,26.14216157]
[1744667296037,0.063,128.93,128.92,49.92467466]
[1744667297040,0.063,128.93,128.92,57.68137466]
[1744667298031,0.0001,128.93,128.92,159.75740823]
[1744667298249,0.063,128.96,128.95,108.20343357]
[1744667298448,0.063,128.96,128.95,118.98594666]
[1744667298749,0.063,128.96,128.95,119.12810823]
[1744667299327,0.063,128.96,128.95,126.88300823]
[1744667300251,0.0001,128.96,128.95,126.88300823]
[1744667300644,0.063,128.98,128.96,20.74449514]
[1744667300847,0.063,129.02,129.0,0.14216157]
[1744667301048,0.063,129.02,129.0,93.86157466]
[1744667301355,0.063,129.02,129.0,163.81966059]
[1744667302453,0.063,129.02,129.0,127.21180823]
[1744667303045,0.063,129.02,129.0,170.34186059]
[1744667303854,0.063,129.02,129.01,82.8739]
[1744667304159,0.063,129.02,129.01,101.54987466]
[1744667312966,0.063,129.02,129.01,114.48987466]
[1744667320363,0.063,129.06,129.03,0.14216157]
[1744667320566,0.063,129.06,129.03,93.79857466]
[1744667321462,0.063,129.06,129.03,101.54867466]
[1744667328265,0.063,129.06,129.04,0.14216157]
[1744667328485,0.063,129.06,129.05,10.92467466]
[1744667330081,0.063,129.06,129.05,18.67357466]
[1744667330282,0.063,129.06,129.05,101.54747466]
[1744667330481,0.063,129.06,129.05,144.81968859]
[1744667330657,0.03,129.08,129.07,0.14216157]
[1744667330863,0.03,129.08,129.07,106.73857466]
[1744667331887,0.03,129.08,129.07,125.81470823]
[1744667332259,0.03,129.08,129.07,133.56240823]
[1744667332661,26.80775,129.13,129.09,0.14216157]
[1744667332885,26.80775,129.13,129.11,10.78251309]
[1744667333785,26.0,129.13,129.11,10.78251309]
[1744667334166,18.52501309,129.16,129.11,10.78251309]
[1744667334485,18.52501309,129.16,129.12,7.7447]
[1744667335265,7.7425,129.16,129.12,7.7447]
[1744667335585,7.7425,129.16,129.12,10.78251309]
[1744667336174,15.6729,129.17,129.13,10.78251309]
[1744667336681,26.45541309,129.17,129.12,10.78251309]
[1744667337257,26.45541309,129.17,129.12,18.52701309]
[1744667338259,15.6729,129.17,129.13,10.78251309]
[1744667338464,15.6729,129.17,129.15,10.78251309]
[1744667338465,0.03,129.17,129.15,10.78251309]
[1744667340084,0.03,129.17,129.16,10.78251309]
[1744667340783,0.03,129.17,129.16,18.52481309]
[1744667344293,0.03,129.17,129.16,7.7423]
[1744667344498,0.03,129.17,129.15,10.78251309]
[1744667345094,0.03,129.17,129.15,18.52501309]
[1744667346000,0.03,129.17,129.16,10.78251309]
[1744667346178,0.03,129.17,129.16,18.52481309]
[1744667349699,0.03,129.17,129.16,7.7423]
[1744667350699,0.03,129.17,129.16,90.6162]
[1744667351871,0.03,129.17,129.16,101.39871309]
[1744667352594,0.03,129.17,129.16,101.68303623]
[1744667355888,0.03,129.17,129.16,114.58303623]
[1744667373624,0.03,129.17,129.16,103.80052314]
[1744667373830,0.03,129.17,129.16,114.58303623]
[1744667374127,0.03,129.17,129.16,101.68303623]
[1744667379305,0.03,129.17,129.16,114.54303623]
[1744667382027,0.03,129.17,129.16,103.76052314]
[1744667382326,0.03,129.17,129.16,114.54303623]
[1744667382715,0.03,129.17,129.16,103.76052314]
[1744667383013,0.03,129.17,129.16,114.54303623]
[1744667384026,0.03,129.17,129.16,103.76052314]
[1744667384233,0.03,129.17,129.16,114.54303623]
[1744667386228,0.03,129.17,129.16,103.76052314]
[1744667386437,0.03,129.17,129.16,114.54303623]
[1744667386628,0.03,129.17,129.16,103.76052314]
[1744667386832,0.03,129.17,129.16,101.68303623]
[1744667387935,0.03,129.17,129.16,90.90052314]
[1744667388138,0.03,129.17,129.16,101.68303623]
[1744667389830,0.03,129.17,129.16,90.90052314]
[1744667390041,0.03,129.17,129.16,101.68303623]
[1744667402045,0.03,129.17,129.16,82.8739]
[1744667403550,0.03,129.17,129.16,90.6162]
[1744667404250,0.03,129.17,129.16,82.8739]
[1744667404638,0.03,129.17,129.16,90.6162]
[1744667405646,0.03,129.17,129.16,82.8739]
[1744667412654,0.03,129.17,129.16,90.6162]
[1744667413847,0.03,129.17,129.16,82.8739]
[1744667416760,0.03,129.17,129.16,90.6162]
[1744667417463,0.03,129.17,129.16,120.6162]
[1744667418865,0.03,129.17,129.16,112.8739]
[1744667423761,0.03,129.17,129.16,120.6162]
[1744667423967,0.03,129.17,129.16,112.8739]
[1744667424469,0.03,129.17,129.16,82.8739]
[1744667429953,0.03,129.17,129.14,90.6171]
[1744667430147,0.03,129.17,129.15,30.0]
[1744667433971,0.03,129.17,129.14,101.39961309]
[1744667434769,0.03,129.17,129.14,90.6171]
[1744667436452,0.03,129.17,129.14,101.39961309]
[1744667437664,0.03,129.17,129.14,90.6171]
[1744667437857,0.03,129.17,129.14,101.39961309]
[1744667440187,0.03,129.17,129.14,90.6171]
[1744667440475,0.03,129.17,129.15,30.0]
[1744667446581,0.03,129.17,129.14,101.39991309]
[1744667450288,0.03,129.17,129.14,101.39991309]
[1744667452385,0.03,129.17,129.14,90.6174]
[1744667454789,0.03,129.17,129.15,30.0]
[1744667457586,0.03,129.17,129.15,37.7428]
[1744667459193,0.03,129.17,129.15,120.6167]
[1744667459504,0.03,129.17,129.15,131.39921309]
[1744667467197,0.03,129.17,129.15,120.6167]
[1744667467996,0.03,129.17,129.15,112.8739]
[1744667469510,0.03,129.17,129.15,120.6167]
[1744667472211,0.03,129.17,129.15,90.6167]
[1744667477391,0.03,129.17,129.15,82.8739]
[1744667477794,10.81251309,129.17,129.12,82.8739]
[1744667477999,10.78251309,129.16,129.12,82.8739]
[1744667478894,10.78251309,129.15,129.12,82.8739]
[1744667481017,18.52501309,129.16,129.12,82.8739]
[1744667482021,7.7425,129.16,129.12,82.8739]
[1744667482316,18.52501309,129.16,129.12,90.6186]
[1744667484113,7.7425,129.16,129.12,101.40111309]
[1744667484312,18.52501309,129.16,129.12,90.6186]
[1744667484834,7.7425,129.16,129.12,101.40111309]
[1744667486100,18.52501309,129.16,129.12,82.8739]
[1744667486424,10.78251309,129.15,129.11,7.7451]
[1744667487726,18.52551309,129.15,129.11,7.7451]
[1744667488523,10.78251309,129.15,129.11,7.7451]
[1744667489024,18.52511309,129.16,129.11,7.7451]
[1744667491236,7.7426,129.16,129.11,7.7451]
[1744667491408,18.52511309,129.16,129.11,7.7451]
[1744667494134,10.78251309,129.15,129.1,101.40201309]
[1744667495426,18.52591309,129.15,129.1,101.40201309]
[1744667505317,18.52591309,129.15,129.1,90.6195]
[1744667507939,18.52591309,129.15,129.1,101.40201309]
[1744667508740,18.52591309,129.15,129.1,90.6195]
[1744667508942,18.52591309,129.15,129.1,101.40201309]
[1744667510044,18.52591309,129.15,129.1,90.6195]
[1744667510216,18.52591309,129.15,129.1,101.40201309]
[1744667510415,9.3461,129.17,129.12,10.78251309]
[1744667510619,26.0,129.15,129.12,10.78251309]
[1744667510839,26.0,129.15,129.13,10.78251309]
[1744667511629,26.0,129.15,129.1,27.1104]
[1744667511830,26.0,129.15,129.12,10.78251309]
[1744667512140,26.0,129.15,129.11,10.78251309]
[1744667512341,26.0,129.15,129.12,7.7447]
[1744667514751,26.0,129.15,129.11,7.7453]
[1744667514929,26.0,129.15,129.11,18.52781309]
[1744667515449,26.0,129.15,129.12,10.78251309]
[1744667515647,26.0,129.15,129.12,93.65641309]
[1744667516424,26.0,129.15,129.13,10.78251309]
[1744667516628,1.6042,129.17,129.13,10.78251309]
[1744667516629,0.03,129.17,129.14,10.78251309]
[1744667516836,0.03,129.17,129.15,18.52541309]
[1744667517153,0.03,129.17,129.15,101.39931309]
[1744667517538,0.03,129.17,129.15,90.6168]
[1744667518131,0.03,129.17,129.11,82.8739]
[1744667518330,12.33741309,129.17,129.12,10.78251309]
[1744667518552,12.33741309,129.17,129.11,101.40151309]
[1744667518739,7.7423,129.16,129.11,101.40151309]
[1744667518944,18.52481309,129.16,129.11,90.619]
[1744667522654,7.7423,129.16,129.11,90.619]
[1744667522954,18.52481309,129.16,129.11,90.619]
[1744667525065,7.7423,129.16,129.11,90.619]
[1744667525362,7.7423,129.16,129.11,101.40151309]
[1744667526465,9.2969,129.17,129.12,10.78251309]
[1744667527553,1.5549,129.17,129.12,10.78251309]
[1744667528039,9.2966,129.17,129.12,10.78251309]
[1744667528459,9.2966,129.17,129.13,7.7441]
[1744667528640,0.03,129.17,129.13,18.52661309]
[1744667528838,0.03,129.17,129.14,10.78251309]
[1744667529536,0.03,129.17,129.15,10.78251309]
[1744667530157,0.03,129.17,129.16,7.7423]
[1744667530354,0.03,129.17,129.16,18.52481309]
[1744667530537,0.03,129.17,129.16,101.39871309]
[1744667533235,0.03,129.17,129.16,101.68303623]
[1744667533649,0.0001,129.17,129.16,120.61700823]
[1744667533840,0.0001,129.17,129.16,122.13400823]
[1744667535267,0.0001,129.17,129.16,152.13400823]
[1744667537060,0.03,129.21,129.17,19.21829514]
[1744667537243,0.03,129.21,129.2,18.52241309]
[1744667537442,0.03,129.21,129.2,101.39631309]
[1744667543063,0.03,129.21,129.2,101.68063623]
[1744667546073,0.03,129.21,129.2,90.89812314]
[1744667546371,0.03,129.21,129.2,101.68063623]
[1744667554085,0.03,129.21,129.2,90.89812314]
[1744667554381,0.03,129.21,129.2,101.68063623]
[1744667558387,0.03,129.21,129.2,90.89812314]
[1744667558589,0.03,129.21,129.2,101.68063623]
[1744667562992,0.03,129.21,129.2,90.89812314]
[1744667563187,0.03,129.21,129.2,101.68063623]
[1744667569196,0.0001,129.21,129.2,120.61460823]
[1744667569585,0.0001,129.21,129.2,122.23660823]
[1744667569797,0.0001,129.21,129.2,152.23660823]
[1744667570091,0.03,129.27,129.23,19.21829514]
[1744667570299,0.03,129.27,129.26,10.78251309]
[1744667570487,0.03,129.27,129.26,93.65631309]
[1744667571292,0.03,129.27,129.26,101.39261309]
[1744667574292,19.13801309,129.31,129.26,101.39261309]
[1744667575095,11.40471309,129.31,129.26,101.39261309]
[1744667575487,0.6222,129.31,129.26,101.39261309]
[1744667578509,24.90581309,129.32,129.27,10.78251309]
[1744667578510,7.7331,129.32,129.27,10.78251309]
[1744667578924,7.7331,129.32,129.26,90.6101]
[1744667579214,7.7331,129.32,129.27,10.78251309]
[1744667579511,7.7331,129.32,129.27,93.65631309]
[1744667579688,7.7331,129.32,129.27,101.39161309]
[1744667580292,18.54481309,129.33,129.28,10.78251309]
[1744667580599,18.54481309,129.33,129.28,93.65631309]
[1744667580984,7.7623,129.33,129.29,10.78251309]
[1744667581308,0.03,129.33,129.3,10.78251309]
[1744667581601,0.03,129.33,129.31,10.78251309]
[1744667581906,0.03,129.33,129.31,18.51551309]
[1744667582202,0.03,129.33,129.31,101.38931309]
[1744667588304,0.03,129.33,129.32,10.78251309]
[1744667589719,0.03,129.33,129.32,18.51521309]
[1744667594099,0.03,129.33,129.32,101.38901309]
[1744667595716,0.03,129.33,129.32,120.32298509]
[1744667595919,0.03,129.39,129.34,0.28432314]
[1744667596103,0.03,129.39,129.38,11.06683623]
[1744667596309,0.03,129.39,129.38,93.94063623]
[1744667597494,0.03,129.39,129.38,122.13280823]
[1744667598313,0.03,129.39,129.38,103.19883623]
[1744667598706,0.03,129.39,129.38,102.91451309]
[1744667599021,0.03,129.39,129.38,101.38541309]
[1744667599902,0.03,129.39,129.38,90.6029]
[1744667600214,0.03,129.39,129.38,101.38541309]
[1744667603605,0.03,129.39,129.38,90.6029]
[1744667603813,0.03,129.39,129.38,101.38541309]
[1744667604006,0.03,129.45,129.38,37.72990823]
[1744667604212,0.03,129.45,129.42,10.78251309]
[1744667605111,0.03,129.45,129.43,7.7261]
[1744667605427,0.03,129.45,129.43,18.50861309]
[1744667606528,0.03,129.45,129.42,18.50911309]
[1744667607207,0.03,129.45,129.42,7.7266]
[1744667607707,0.03,129.45,129.41,18.50961309]
[1744667609424,18.64964886,129.43,129.38,82.8738]
[1744667609636,10.78251309,129.42,129.39,30.0]
[1744667609823,18.64964886,129.43,129.39,30.0]
[1744667610021,10.78251309,129.41,129.39,30.0]
[1744667610611,10.78251309,129.41,129.36,93.65631309]
[1744667610917,10.78251309,129.41,129.37,30.0]
[1744667611114,0.28432314,129.42,129.36,101.38661309]
[1744667611115,7.7279,129.4,129.36,101.38661309]
[1744667611632,7.7279,129.4,129.36,82.8738]
[1744667612135,7.7279,129.4,129.36,93.65631309]
[1744667613815,7.7273,129.41,129.36,93.65631309]
[1744667615422,7.7273,129.41,129.36,101.38641309]
[1744667615624,7.7273,129.41,129.37,10.78251309]
[1744667619842,7.7273,129.41,129.38,10.78251309]
[1744667620339,7.7267,129.42,129.37,18.51221309]
[1744667622743,7.7267,129.42,129.38,10.78251309]
[1744667623523,7.7267,129.42,129.38,18.51161309]
[1744667623731,7.7267,129.42,129.38,10.78251309]
[1744667624623,7.7267,129.42,129.37,18.51201309]
[1744667626952,8.0924,129.44,129.39,10.78251309]
[1744667627140,0.03,129.45,129.41,10.78251309]
[1744667627343,26.0,129.43,129.41,10.78251309]
[1744667627544,0.03,129.45,129.42,10.78251309]
[1744667628233,0.03,129.45,129.41,10.78251309]
[1744667629033,0.03,129.45,129.41,7.7273]
[1744667629234,0.03,129.45,129.41,18.50981309]
[1744667629434,0.03,129.45,129.42,10.78251309]
[1744667629843,0.03,129.45,129.41,18.50981309]
[1744667630765,0.03,129.45,129.41,37.82821309]
[1744667630939,0.03,129.45,129.42,10.78251309]
[1744667631759,0.03,129.45,129.43,10.78251309]
[1744667632765,0.03,129.45,129.44,7.7255]
[1744667633867,0.03,129.45,129.42,7.7267]
[1744667634054,0.03,129.45,129.43,10.78251309]
[1744667635145,0.03,129.45,129.42,101.38301309]
[1744667635353,0.03,129.45,129.42,90.6005]
[1744667635862,0.03,129.45,129.42,82.8738]
[1744667636066,10.81251309,129.45,129.42,82.8738]
[1744667636665,0.03,129.45,129.42,82.8738]
[1744667637047,0.03,129.45,129.44,11.06683623]
[1744667637248,0.03,129.48,129.47,26.28432314]
[1744667637456,0.03,129.48,129.47,119.94063623]
[1744667637842,0.03,129.48,129.47,127.66433623]
[1744667638342,0.03,129.48,129.47,90.5975]
[1744667638761,0.03,129.48,129.46,18.50661309]
[1744667639471,0.03,129.48,129.46,7.7241]
[1744667639663,0.03,129.48,129.46,18.50661309]
[1744667645677,0.03,129.48,129.47,10.78251309]
[1744667646577,2.7905618,129.51,129.48,0.28432314]
[1744667646787,2.7905618,129.51,129.5,10.78251309]
[1744667648251,2.7905618,129.51,129.5,93.94063623]
[1744667648747,2.7905618,129.51,129.5,101.66263623]
[1744667650875,2.7905618,129.51,129.49,7.7221]
[1744667651074,2.7905618,129.51,129.48,90.5967]
[1744667652461,2.7905618,129.51,129.48,101.37921309]
[1744667654383,2.7905618,129.51,129.5,18.50451309]
[1744667654773,2.7905618,129.51,129.5,7.722]
[1744667655281,2.7905618,129.51,129.49,18.50481309]
[1744667659077,2.7905618,129.51,129.49,7.7223]
[1744667660185,2.7905618,129.51,129.48,101.37941309]
[1744667660386,2.7905618,129.51,129.47,18.50601309]
[1744667662183,2.7905618,129.51,129.48,10.78251309]
[1744667663096,2.7905618,129.51,129.49,7.7226]
[1744667663769,2.7905618,129.51,129.49,90.5964]
[1744667664307,2.7905618,129.51,129.49,101.37891309]
[1744667664466,2.7905618,129.51,129.5,0.28432314]
[1744667664794,2.7905618,129.51,129.5,11.06683623]
[1744667665294,2.7905618,129.51,129.5,8.00632314]
[1744667666481,2.7905618,129.51,129.5,18.78883623]
[1744667667562,2.7905618,129.51,129.5,101.66263623]
[1744667669192,2.7905618,129.51,129.5,101.37831309]
[1744667669573,2.7905618,129.51,129.5,90.5958]
[1744667673593,2.7905618,129.51,129.5,101.37831309]
[1744667674395,2.7905618,129.51,129.5,90.5958]
[1744667674596,2.7905618,129.51,129.5,101.37831309]
[1744667675682,2.7905618,129.51,129.5,82.8738]
[1744667675888,2.7905618,129.51,129.48,7.7229]
[1744667676294,2.7905618,129.51,129.47,7.7234]
[1744667676494,2.7905618,129.51,129.48,30.0]
[1744667677177,10.5120618,129.51,129.48,30.0]
[1744667677379,2.7905618,129.51,129.47,18.50591309]
[1744667677781,2.7905618,129.51,129.47,7.7234]
[1744667677983,10.78251309,129.5,129.46,82.8738]
[1744667678184,10.78251309,129.5,129.46,90.5981]
[1744667679594,21.29447489,129.51,129.46,90.5981]
[1744667679901,10.78251309,129.5,129.46,90.5981]
[1744667680585,10.5119618,129.51,129.46,90.5981]
[1744667680786,21.29447489,129.51,129.46,90.5981]
[1744667683005,10.5119618,129.51,129.46,90.5981]
[1744667683387,21.29447489,129.51,129.46,90.5981]
[1744667687806,26.655972,129.5,129.46,82.8738]
[1744667688010,10.78251309,129.49,129.43,93.65631309]
[1744667688600,10.78251309,129.49,129.44,18.50781309]
[1744667688801,26.655972,129.5,129.44,18.50781309]
[1744667689114,10.78251309,129.5,129.45,10.78251309]
[1744667690410,10.78251309,129.5,129.46,7.7243]
[1744667691115,10.5120618,129.51,129.46,7.7243]
[1744667691300,21.29457489,129.51,129.46,7.7243]
[1744667693315,2.7905618,129.51,129.46,18.50681309]
[1744667693613,26.0,129.49,129.46,18.50681309]
[1744667696113,2.7905618,129.51,129.46,37.81771309]
[1744667696807,2.7905618,129.51,129.46,120.69151309]
[1744667698212,2.7905618,129.51,129.47,11.06683623]
[1744667698413,2.7905618,129.51,129.49,10.78251309]
[1744667698714,2.7905618,129.51,129.49,93.65631309]
[1744667699519,2.7905618,129.51,129.47,0.28432314]
[1744667699815,2.7905618,129.51,129.47,11.06683623]
[1744667701028,2.7905618,129.51,129.48,7.7232]
[1744667701835,2.7905618,129.51,129.48,37.81371309]
[1744667702021,2.7905618,129.51,129.49,10.78251309]